[Event "44th Chess Olympiad Open 2022"]
[Site "Chennai"]
[Date "2022.08.06"]
[Round "8.67"]
[White "Sixtus Gabriel"]
[Black "Al-Sulaiti, Ghanem"]
[Result "0-1"]
[WhiteElo "1787"]
[BlackElo "2183"]
[Annotator "NA RC"]
[PlyCount "94"]
[EventDate "2022.??.??"]
[TimeControl "60"]

1. e4 {[%emt 0:00:06]} c5 {[%emt 0:00:04]} 2. Nf3 {[%emt 0:00:06]} Nc6 {
[%emt 0:00:05]} 3. d4 {[%emt 0:00:28]} cxd4 {[%emt 0:00:06]} 4. Nxd4 {[%emt 0:
00:00]} Nf6 {[%emt 0:00:05]} 5. Nc3 {[%emt 0:00:32]} e5 {[%emt 0:00:08]} 6. Nb3
{[%emt 0:03:47]} Bb4 {[%emt 0:00:34]} 7. Bg5 {[%emt 0:02:05]} h6 {[%emt 0:00:
00]} 8. Bxf6 {[%emt 0:02:42]} Bxc3+ {[%emt 0:00:13]} 9. bxc3 {[%emt 0:00:39]}
Qxf6 {[%emt 0:00:21]} 10. Qd3 {[%emt 0:02:48]} O-O {[%emt 0:00:30]} 11. Be2 {
[%emt 0:00:51]} Rd8 {[%emt 0:03:22]} 12. O-O {[%emt 0:01:57]} d6 {[%emt 0:00:
00]} 13. Rad1 {[%emt 0:01:48]} Be6 {[%emt 0:00:30]} 14. Qb5 {[%emt 0:06:35]}
Rd7 {[%emt 0:27:46]} 15. Bc4 {[%emt 0:02:51]} a6 {[%emt 0:14:15]} 16. Qa4 {
[%emt 0:02:12]} Bxc4 {[%emt 0:10:51]} 17. Qxc4 {[%emt 0:01:51]} Rc8 {[%emt 0:
00:00]} 18. Rd2 {[%emt 0:06:31]} Rdc7 {[%emt 0:04:09]} 19. Qd5 {[%emt 0:06:30]}
Ne7 {[%emt 0:06:42]} 20. Qxd6 {[%emt 0:01:58]} Qxd6 {[%emt 0:00:53]} 21. Rxd6 {
[%emt 0:00:11]} Rxc3 {[%emt 0:01:48]} 22. Rfd1 {[%emt 0:01:07]} Rxc2 {[%emt 0:
00:00]} 23. Rd8+ {[%emt 0:01:54]} Kh7 {[%emt 0:03:32]} 24. Rxc8 {[%emt 0:02:48]
} Nxc8 {[%emt 0:00:19]} 25. Rc1 {[%emt 0:02:56]} Rxc1+ {[%emt 0:01:12]} 26.
Nxc1 {[%emt 0:00:09]} Kg6 {[%emt 0:06:57]} 27. Nd3 {[%emt 0:01:34]} Kf6 {
[%emt 0:00:12]} 28. f3 {[%emt 0:00:53]} b6 {[%emt 0:00:54]} 29. Kf2 {[%emt 0:
00:00]} a5 {[%emt 0:01:40]} 30. h4 {[%emt 0:01:20]} Ke6 {[%emt 0:00:14]} 31.
Ke3 {[%emt 0:00:51]} Kd6 {[%emt 0:00:34]} 32. a4 {[%emt 0:00:38]} Ne7 {[%emt 0:
00:00]} 33. g3 {[%emt 0:00:33]} Nc6 {[%emt 0:01:06]} 34. f4 {[%emt 0:00:22]} f6
{[%emt 0:00:26]} 35. h5 {[%emt 0:00:25]} Nb4 {[%emt 0:01:10]} 36. Nb2 {[%emt 0:
00:00]} Kc5 {[%emt 0:00:37]} 37. f5 {[%emt 0:00:48]} b5 {[%emt 0:02:56]} 38. g4
{[%emt 0:00:15]} bxa4 {[%emt 0:00:44]} 39. Nxa4+ {[%emt 0:01:08]} Kb5 {[%emt 0:
00:00]} 40. Nc3+ {[%emt 0:00:23]} Kc4 {[%emt 0:00:10]} 41. Na4 {[%emt 0:30:10]}
Kb3 {[%emt 0:31:48]} 42. Nc5+ {[%emt 0:00:12]} Kc4 {[%emt 0:00:00]} 43. Nd7 {
[%emt 0:00:00]} a4 {[%emt 0:00:00]} 44. Nxe5+ {[%emt 0:00:00]} fxe5 {[%emt 0:
00:00]} 45. g5 {[%emt 0:00:00]} hxg5 {[%emt 0:00:00]} 46. h6 {[%emt 0:00:00]}
gxh6 {[%emt 0:00:00]} 47. f6 {[%emt 0:00:00]} Nc2+ {[%emt 0:00:00]} 0-1

[Event "44th Chess Olympiad Open 2022"]
[Site "Chennai"]
[Date "2022.08.06"]
[Round "8.67"]
[White "Al-Homaid, Abdulla"]
[Black "Mathurin, Nathaniel"]
[Result "0-1"]
[WhiteElo "1358"]
[BlackElo "1722"]
[Annotator "NA RC"]
[PlyCount "64"]
[EventDate "2022.??.??"]
[TimeControl "60"]

1. e4 {[%emt 0:00:05]} c5 {[%emt 0:00:31]} 2. Nf3 {[%emt 0:00:07]} d6 {[%emt 0:
00:00]} 3. Bb5+ {[%emt 0:00:16]} Nd7 {[%emt 0:00:36]} 4. c3 {[%emt 0:00:32]}
Ngf6 {[%emt 0:00:39]} 5. Qe2 {[%emt 0:00:26]} Qc7 {[%emt 0:01:47]} 6. O-O {
[%emt 0:01:50]} a6 {[%emt 0:02:22]} 7. Ba4 {[%emt 0:01:09]} b5 {[%emt 0:02:53]}
8. Bc2 {[%emt 0:00:43]} Bb7 {[%emt 0:01:16]} 9. d4 {[%emt 0:02:01]} Rc8 {
[%emt 0:01:32]} 10. d5 {[%emt 0:10:40]} g6 {[%emt 0:02:20]} 11. Bg5 {[%emt 0:
00:00]} Bg7 {[%emt 0:01:07]} 12. Nbd2 {[%emt 0:01:10]} O-O {[%emt 0:00:44]} 13.
Rfe1 {[%emt 0:03:08]} Rfe8 {[%emt 0:47:55]} 14. Nf1 {[%emt 0:13:17]} e6 {
[%emt 0:02:56]} 15. dxe6 {[%emt 0:02:42]} Rxe6 {[%emt 0:01:33]} 16. N3d2 {
[%emt 0:10:50]} d5 {[%emt 0:03:49]} 17. f3 {[%emt 0:04:30]} Nh5 {[%emt 0:02:31]
} 18. Qf2 {[%emt 0:05:18]} d4 {[%emt 0:01:05]} 19. c4 {[%emt 0:02:08]} h6 {
[%emt 0:03:36]} 20. Bh4 {[%emt 0:00:36]} d3 {[%emt 0:00:43]} 21. Bxd3 {[%emt 0:
00:00]} Nf4 {[%emt 0:04:29]} 22. Be2 {[%emt 0:06:32]} Bxb2 {[%emt 0:00:50]} 23.
Rab1 {[%emt 0:01:16]} Bd4 {[%emt 0:00:18]} 24. Ne3 {[%emt 0:00:30]} Qa5 {
[%emt 0:06:51]} 25. Bf1 {[%emt 0:09:55]} Qxa2 {[%emt 0:01:09]} 26. cxb5 {
[%emt 0:00:43]} Ne5 {[%emt 0:00:56]} 27. Ndc4 {[%emt 0:08:08]} Qxf2+ {[%emt 0:
00:00]} 28. Bxf2 {[%emt 0:00:09]} Nh3+ {[%emt 0:01:58]} 29. gxh3 {[%emt 0:00:
00]} Nxf3+ {[%emt 0:00:02]} 30. Kg2 {[%emt 0:00:26]} Nxe1+ {[%emt 0:01:15]} 31.
Bxe1 {[%emt 0:00:51]} Bxe4+ {[%emt 0:00:03]} 32. Kf2 {[%emt 0:02:07]} Bxb1 {
[%emt 0:00:38]} 0-1

[Event "44th Chess Olympiad Open 2022"]
[Site "Chennai"]
[Date "2022.08.06"]
[Round "8.68"]
[White "Willem Blijstra"]
[Black "Asante Debesai Zerabruk"]
[Result "0-1"]
[WhiteElo "2198"]
[BlackElo "1785"]
[Annotator "RC"]
[PlyCount "90"]
[EventDate "2022.??.??"]
[TimeControl "60"]

1. d4 {[%emt 0:00:04]} Nf6 {[%emt 0:00:04]} 2. c4 {[%emt 0:00:10]} e6 {[%emt 0:
00:00]} 3. Nf3 {[%emt 0:00:16]} d5 {[%emt 0:01:38]} 4. Nc3 {[%emt 0:00:24]} Be7
{[%emt 0:00:06]} 5. Bf4 {[%emt 0:01:12]} O-O {[%emt 0:00:41]} 6. e3 {[%emt 0:
00:00]} b6 {[%emt 0:00:15]} 7. cxd5 {[%emt 0:05:42]} exd5 {[%emt 0:05:23]} 8.
Bd3 {[%emt 0:03:08]} c6 {[%emt 0:13:08]} 9. Ne5 {[%emt 0:01:43]} Bb7 {[%emt 0:
00:00]} 10. g4 {[%emt 0:25:07]} Nbd7 {[%emt 0:16:48]} 11. g5 {[%emt 0:00:15]}
Nxe5 {[%emt 0:08:41]} 12. dxe5 {[%emt 0:00:10]} Nd7 {[%emt 0:12:37]} 13. Qh5 {
[%emt 0:00:29]} g6 {[%emt 0:00:36]} 14. Qg4 {[%emt 0:00:08]} Nc5 {[%emt 0:00:
00]} 15. Bc2 {[%emt 0:01:07]} Ne6 {[%emt 0:00:57]} 16. O-O-O {[%emt 0:01:19]}
Bxg5 {[%emt 0:11:30]} 17. h4 {[%emt 0:01:51]} Bxf4 {[%emt 0:01:53]} 18. exf4 {
[%emt 0:00:16]} f5 {[%emt 0:07:51]} 19. Qg3 {[%emt 0:02:54]} Rf7 {[%emt 0:00:
00]} 20. Rh2 {[%emt 0:10:07]} Rg7 {[%emt 0:01:45]} 21. Ne2 {[%emt 0:00:29]} Qe7
{[%emt 0:00:34]} 22. Rg1 {[%emt 0:07:54]} Ba6 {[%emt 0:01:08]} 23. Bd3 {
[%emt 0:01:02]} Bxd3 {[%emt 0:00:18]} 24. Qxd3 {[%emt 0:00:03]} Rd8 {[%emt 0:
00:00]} 25. Kb1 {[%emt 0:00:18]} c5 {[%emt 0:00:15]} 26. h5 {[%emt 0:02:36]}
Kf7 {[%emt 0:01:56]} 27. hxg6+ {[%emt 0:00:10]} hxg6 {[%emt 0:00:02]} 28. Qh3 {
[%emt 0:00:33]} Rdg8 {[%emt 0:00:28]} 29. Qf3 {[%emt 0:00:59]} Qd7 {[%emt 0:00:
00]} 30. Nc3 {[%emt 0:00:18]} Nc7 {[%emt 0:02:17]} 31. Rd1 {[%emt 0:01:56]} Rd8
{[%emt 0:00:58]} 32. Rhh1 {[%emt 0:00:32]} Qe6 {[%emt 0:00:39]} 33. Rd2 {
[%emt 0:00:16]} Rd7 {[%emt 0:00:25]} 34. Rhd1 {[%emt 0:00:16]} d4 {[%emt 0:00:
00]} 35. Ne2 {[%emt 0:00:36]} Nd5 {[%emt 0:00:27]} 36. Qh3 {[%emt 0:00:35]} Nb4
{[%emt 0:01:36]} 37. b3 {[%emt 0:01:42]} Nd5 {[%emt 0:00:01]} 38. Kb2 {[%emt 0:
00:00]} a5 {[%emt 0:00:50]} 39. Qh8 {[%emt 0:00:17]} Qe8 {[%emt 0:00:13]} 40.
Qh1 {[%emt 0:00:11]} b5 {[%emt 0:05:21]} 41. Rc1 {[%emt 0:34:11]} Qe7 {[%emt 0:
00:00]} 42. Qf3 {[%emt 0:00:00]} b4 {[%emt 0:03:45]} 43. Qd3 {[%emt 0:00:00]}
Nc3 {[%emt 0:03:50]} 44. Qc4+ {[%emt 0:00:00]} Qe6 {[%emt 0:01:03]} 45. Qxc5 {
[%emt 0:00:00]} Ne4 {[%emt 0:01:22]} 0-1

[Event "44th Chess Olympiad Open 2022"]
[Site "Chennai"]
[Date "2022.08.06"]
[Round "8.68"]
[White "Samuel Merhawi Gebrehiwet"]
[Black "Ursus van Bemmelen"]
[Result "0-1"]
[WhiteElo "1616"]
[BlackElo "2145"]
[Annotator "NA RC"]
[PlyCount "72"]
[EventDate "2022.??.??"]
[TimeControl "60"]

1. Nf3 {[%emt 0:00:12]} Nf6 {[%emt 0:00:27]} 2. c4 {[%emt 0:01:10]} c5 {
[%emt 0:00:48]} 3. Nc3 {[%emt 0:00:00]} e6 {[%emt 0:01:02]} 4. d4 {[%emt 0:00:
00]} cxd4 {[%emt 0:00:20]} 5. Nxd4 {[%emt 0:00:13]} a6 {[%emt 0:00:14]} 6. g3 {
[%emt 0:00:47]} Qc7 {[%emt 0:02:08]} 7. Qd3 {[%emt 0:04:07]} Nc6 {[%emt 0:00:
00]} 8. Nxc6 {[%emt 0:00:00]} dxc6 {[%emt 0:01:44]} 9. Bg2 {[%emt 0:01:01]} e5
{[%emt 0:02:02]} 10. O-O {[%emt 0:00:00]} Be6 {[%emt 0:01:09]} 11. b3 {[%emt 0:
00:00]} Be7 {[%emt 0:02:31]} 12. Ne4 {[%emt 0:00:22]} Nd7 {[%emt 0:02:19]} 13.
Ng5 {[%emt 0:00:36]} Bxg5 {[%emt 0:00:35]} 14. Bxg5 {[%emt 0:00:10]} f6 {
[%emt 0:01:00]} 15. Bc1 {[%emt 0:00:27]} Rd8 {[%emt 0:06:07]} 16. Qc2 {[%emt 0:
00:00]} O-O {[%emt 0:05:34]} 17. Ba3 {[%emt 0:02:58]} Rfe8 {[%emt 0:00:30]} 18.
Be4 {[%emt 0:00:22]} h6 {[%emt 0:00:45]} 19. Bh7+ {[%emt 0:01:22]} Kh8 {
[%emt 0:00:21]} 20. Bg6 {[%emt 0:00:16]} Rg8 {[%emt 0:00:05]} 21. Be7 {[%emt 0:
00:00]} Ra8 {[%emt 0:01:39]} 22. c5 {[%emt 0:00:19]} Nf8 {[%emt 0:01:31]} 23.
Bd6 {[%emt 0:00:09]} Qc8 {[%emt 0:00:03]} 24. Bd3 {[%emt 0:01:06]} Bh3 {
[%emt 0:04:08]} 25. Rfd1 {[%emt 0:02:54]} Ne6 {[%emt 0:00:43]} 26. e3 {[%emt 0:
00:00]} Bg4 {[%emt 0:02:15]} 27. Rf1 {[%emt 0:03:58]} Bf3 {[%emt 0:05:16]} 28.
Bf5 {[%emt 0:02:43]} Qe8 {[%emt 0:01:53]} 29. h4 {[%emt 0:01:03]} g5 {[%emt 0:
00:00]} 30. Qc4 {[%emt 0:02:08]} Bd5 {[%emt 0:13:44]} 31. Qa4 {[%emt 0:02:40]}
Nd4 {[%emt 0:06:50]} 32. exd4 {[%emt 0:02:41]} gxh4 {[%emt 0:00:02]} 33. g4 {
[%emt 0:02:17]} Qh5 {[%emt 0:00:22]} 34. dxe5 {[%emt 0:00:13]} Qxf5 {[%emt 0:
00:00]} 35. f3 {[%emt 0:02:57]} Bxf3 {[%emt 0:00:30]} 36. Kh2 {[%emt 0:09:05]}
Qc2+ {[%emt 0:00:50]} 0-1

[Event "44th Chess Olympiad Open 2022"]
[Site "Chennai"]
[Date "2022.08.06"]
[Round "8.69"]
[White "Van den Brink, Peter"]
[Black "Traore, Bakary"]
[Result "0-1"]
[WhiteElo "2167"]
[BlackElo "2181"]
[Annotator "NA RC"]
[PlyCount "71"]
[EventDate "2022.??.??"]
[TimeControl "60"]

1. c4 {[%emt 0:00:06]} Nf6 {[%emt 0:00:46]} 2. g3 {[%emt 0:00:10]} g6 {[%emt 0:
00:00]} 3. Bg2 {[%emt 0:00:07]} Bg7 {[%emt 0:00:14]} 4. Nc3 {[%emt 0:00:11]} d6
{[%emt 0:00:50]} 5. e4 {[%emt 0:00:31]} c5 {[%emt 0:00:26]} 6. Nge2 {[%emt 0:
00:00]} Nc6 {[%emt 0:00:25]} 7. d3 {[%emt 0:01:13]} O-O {[%emt 0:03:30]} 8. O-O
{[%emt 0:00:06]} a6 {[%emt 0:00:26]} 9. h3 {[%emt 0:06:45]} Rb8 {[%emt 0:00:40]
} 10. a4 {[%emt 0:00:57]} Nd7 {[%emt 0:02:49]} 11. Be3 {[%emt 0:06:32]} Nd4 {
[%emt 0:01:20]} 12. Rb1 {[%emt 0:01:25]} b6 {[%emt 0:00:57]} 13. b4 {[%emt 0:
00:00]} Bb7 14. Qd2 {[%emt 0:13:20]} e6 {[%emt 0:03:49]} 15. Na2 {[%emt 0:00:
00]} Bc6 {[%emt 0:05:43]} 16. b5 axb5 {[%emt 0:01:11]} 17. Bxd4 {[%emt 0:04:13]
} cxd4 {[%emt 0:00:00]} 18. axb5 Bb7 {[%emt 0:00:42]} 19. Nb4 {[%emt 0:01:15]}
Nc5 {[%emt 0:03:00]} 20. Qc2 {[%emt 0:01:18]} Ra8 {[%emt 0:05:14]} 21. Ra1 {
[%emt 0:01:18]} Qc7 {[%emt 0:00:47]} 22. Rfb1 {[%emt 0:04:14]} Ra5 {[%emt 0:00:
00]} 23. Rxa5 bxa5 {[%emt 0:00:00]} 24. Na2 {[%emt 0:00:30]} f5 {[%emt 0:03:02]
} 25. f3 {[%emt 0:05:36]} fxe4 {[%emt 0:02:41]} 26. fxe4 {[%emt 0:00:07]} Bh6 {
[%emt 0:00:27]} 27. Rf1 {[%emt 0:15:49]} Be3+ {[%emt 0:00:25]} 28. Kh1 {
[%emt 0:04:18]} Rxf1+ {[%emt 0:00:38]} 29. Bxf1 {[%emt 0:00:22]} Qf7 {[%emt 0:
00:00]} 30. Bg2 {[%emt 0:00:23]} Qf2 {[%emt 0:00:28]} 31. Qd1 {[%emt 0:00:18]}
e5 {[%emt 0:01:26]} 32. Nac1 {[%emt 0:00:38]} Bxc1 {[%emt 0:00:54]} 33. Nxc1 {
[%emt 0:00:37]} Qxg3 {[%emt 0:01:58]} 34. Qd2 {[%emt 0:02:32]} a4 {[%emt 0:00:
00]} 35. Bf1 {[%emt 0:04:46]} Kg7 {[%emt 0:02:37]} 36. Bg2 {[%emt 0:00:00]} 0-1

[Event "44th Chess Olympiad Open 2022"]
[Site "Chennai"]
[Date "2022.08.06"]
[Round "8.69"]
[White "Coulibaly, Abdoulaye"]
[Black "Stetsenko, Ilya"]
[Result "0-1"]
[WhiteElo "1936"]
[BlackElo "1683"]
[Annotator "NA RC"]
[PlyCount "120"]
[EventDate "2022.??.??"]
[TimeControl "60"]

1. e4 {[%emt 0:00:07]} c6 {[%emt 0:00:10]} 2. d4 {[%emt 0:00:14]} d5 {[%emt 0:
00:00]} 3. Nc3 {[%emt 0:00:20]} dxe4 {[%emt 0:00:04]} 4. Nxe4 {[%emt 0:00:21]}
Nd7 {[%emt 0:00:11]} 5. Nf3 {[%emt 0:01:03]} Ngf6 {[%emt 0:00:05]} 6. Bd3 {
[%emt 0:00:27]} Nxe4 {[%emt 0:00:04]} 7. Bxe4 {[%emt 0:00:18]} Nf6 {[%emt 0:00:
00]} 8. Qd3 {[%emt 0:00:54]} Nxe4 {[%emt 0:00:04]} 9. Qxe4 {[%emt 0:00:15]} Qd5
{[%emt 0:00:06]} 10. Qf4 {[%emt 0:04:23]} Qf5 {[%emt 0:00:24]} 11. O-O {
[%emt 0:02:11]} Qxc2 {[%emt 0:03:42]} 12. Re1 {[%emt 0:03:53]} Qf5 {[%emt 0:00:
00]} 13. Qc7 {[%emt 0:00:56]} Qd7 {[%emt 0:11:42]} 14. Qa5 {[%emt 0:00:48]} b6
{[%emt 0:04:47]} 15. Qc3 {[%emt 0:00:33]} Bb7 {[%emt 0:01:00]} 16. Bf4 {
[%emt 0:00:49]} e6 {[%emt 0:01:34]} 17. Ne5 {[%emt 0:01:21]} Qd5 {[%emt 0:00:
00]} 18. Qg3 {[%emt 0:02:42]} g6 {[%emt 0:05:40]} 19. Ng4 {[%emt 0:01:23]} Bg7
{[%emt 0:00:30]} 20. Be5 {[%emt 0:01:04]} Bxe5 {[%emt 0:03:25]} 21. dxe5 {
[%emt 0:00:19]} O-O-O {[%emt 0:01:18]} 22. h3 {[%emt 0:01:21]} c5 {[%emt 0:00:
00]} 23. Nf6 {[%emt 0:00:25]} Qd3 {[%emt 0:03:44]} 24. Re3 {[%emt 0:00:25]} Qd2
{[%emt 0:00:55]} 25. b3 {[%emt 0:07:06]} Qb2 {[%emt 0:01:50]} 26. Rae1 {
[%emt 0:00:43]} Qxa2 {[%emt 0:00:53]} 27. Ne4 {[%emt 0:00:27]} Bxe4 {[%emt 0:
00:00]} 28. Rxe4 {[%emt 0:00:02]} Qc2 {[%emt 0:04:12]} 29. Ra4 {[%emt 0:00:59]}
Rd1 {[%emt 0:01:24]} 30. Rxd1 {[%emt 0:00:23]} Qxd1+ {[%emt 0:00:02]} 31. Kh2 {
[%emt 0:00:01]} Kb8 {[%emt 0:00:51]} 32. Qf4 {[%emt 0:00:28]} Qd7 {[%emt 0:00:
00]} 33. Ra2 {[%emt 0:00:52]} Rd8 {[%emt 0:00:30]} 34. g3 {[%emt 0:01:36]} Qc7
{[%emt 0:00:49]} 35. Qa4 {[%emt 0:04:21]} Rd5 {[%emt 0:03:18]} 36. Re2 {
[%emt 0:04:21]} Qd7 {[%emt 0:01:08]} 37. Qf4 {[%emt 0:01:00]} h5 {[%emt 0:00:
00]} 38. Qh6 {[%emt 0:03:02]} Kb7 {[%emt 0:02:24]} 39. Qe3 {[%emt 0:02:10]} Rd1
{[%emt 0:00:56]} 40. Qf3+ {[%emt 0:00:48]} Kb8 {[%emt 0:00:07]} 41. g4 {
[%emt 0:35:49]} hxg4 {[%emt 0:31:07]} 42. hxg4 {[%emt 0:00:33]} Qb7 {[%emt 0:
00:00]} 43. Qf6 {[%emt 0:05:27]} Qh1+ {[%emt 0:01:43]} 44. Kg3 {[%emt 0:00:02]}
Rg1+ {[%emt 0:02:24]} 45. Kf4 {[%emt 0:00:25]} Qh6+ {[%emt 0:02:11]} 46. g5 {
[%emt 0:02:45]} Qh4+ {[%emt 0:00:27]} 47. Ke3 {[%emt 0:00:00]} Qxg5+ {[%emt 0:
00:00]} 48. Qxg5 {[%emt 0:00:27]} Rxg5 {[%emt 0:00:01]} 49. Kf4 {[%emt 0:01:12]
} Rf5+ {[%emt 0:00:11]} 50. Kg4 {[%emt 0:00:20]} Kc7 {[%emt 0:00:08]} 51. f4 {
[%emt 0:00:03]} Rh5 {[%emt 0:00:36]} 52. Ra2 {[%emt 0:00:24]} a5 {[%emt 0:00:
00]} 53. Rd2 {[%emt 0:00:22]} b5 {[%emt 0:00:30]} 54. Rd6 {[%emt 0:00:13]} Rf5
{[%emt 0:04:42]} 55. Ra6 {[%emt 0:00:35]} c4 {[%emt 0:00:19]} 56. bxc4 {
[%emt 0:00:16]} bxc4 {[%emt 0:00:06]} 57. Rxa5 {[%emt 0:00:30]} Kb6 {[%emt 0:
00:00]} 58. Ra8 {[%emt 0:00:37]} Kc5 {[%emt 0:00:27]} 59. Rg8 {[%emt 0:00:11]}
Kd4 {[%emt 0:00:53]} 60. Kf3 {[%emt 0:00:03]} g5 {[%emt 0:00:29]} 0-1

[Event "44th Chess Olympiad Open 2022"]
[Site "Chennai"]
[Date "2022.08.06"]
[Round "8.69"]
[White "Pesqueira, Jose"]
[Black "Ndiaye, Amadou"]
[Result "1/2-1/2"]
[WhiteElo "1809"]
[BlackElo "1968"]
[Annotator "NA RC"]
[PlyCount "92"]
[EventDate "2022.??.??"]
[TimeControl "60"]

1. e4 {[%emt 0:00:05]} c5 {[%emt 0:00:06]} 2. Nc3 {[%emt 0:00:09]} g6 {[%emt 0:
00:00]} 3. Bc4 {[%emt 0:01:15]} Bg7 {[%emt 0:00:12]} 4. Nf3 {[%emt 0:01:58]}
Nc6 {[%emt 0:00:11]} 5. a3 {[%emt 0:00:58]} Nf6 {[%emt 0:00:38]} 6. d3 {
[%emt 0:00:17]} O-O {[%emt 0:00:45]} 7. h3 {[%emt 0:04:30]} d6 {[%emt 0:00:21]}
8. O-O {[%emt 0:00:44]} a6 {[%emt 0:02:53]} 9. Be3 {[%emt 0:04:18]} Bd7 {
[%emt 0:08:51]} 10. Qd2 {[%emt 0:00:03]} b5 {[%emt 0:05:25]} 11. Ba2 {[%emt 0:
00:00]} b4 {[%emt 0:00:00]} 12. axb4 {[%emt 0:00:13]} cxb4 {[%emt 0:00:00]} 13.
Na4 {[%emt 0:03:43]} Rb8 {[%emt 0:08:42]} 14. Bc4 {[%emt 0:10:35]} a5 {[%emt 0:
00:00]} 15. Bh6 {[%emt 0:10:57]} Ne5 {[%emt 0:00:00]} 16. Nxe5 {[%emt 0:00:31]}
dxe5 {[%emt 0:00:00]} 17. Bxg7 {[%emt 0:10:34]} Kxg7 {[%emt 0:00:00]} 18. Qe3 {
[%emt 0:01:04]} Bc6 {[%emt 0:00:00]} 19. c3 {[%emt 0:17:59]} Nh5 {[%emt 0:00:
00]} 20. g3 {[%emt 0:08:08]} Qd7 {[%emt 0:00:00]} 21. Nc5 {[%emt 0:02:38]} Qxh3
{[%emt 0:00:00]} 22. Qg5 {[%emt 0:05:52]} bxc3 {[%emt 0:00:00]} 23. bxc3 {
[%emt 0:01:35]} Rb2 {[%emt 0:00:00]} 24. Qh4 {[%emt 0:03:32]} Qxh4 {[%emt 0:00:
00]} 25. gxh4 {[%emt 0:00:01]} Ra8 {[%emt 0:00:05]} 26. d4 {[%emt 0:02:08]}
exd4 {[%emt 0:03:23]} 27. cxd4 {[%emt 0:00:01]} Rc2 {[%emt 0:00:08]} 28. Bb3 {
[%emt 0:00:56]} Rb2 {[%emt 0:02:26]} 29. Ba4 {[%emt 0:00:25]} Bxa4 {[%emt 0:00:
00]} 30. Rxa4 {[%emt 0:00:02]} Nf4 {[%emt 0:01:28]} 31. e5 {[%emt 0:00:53]} Nd5
{[%emt 0:03:13]} 32. Nd3 {[%emt 0:00:32]} Rb3 {[%emt 0:00:53]} 33. Nc5 {
[%emt 0:00:30]} Rb2 {[%emt 0:01:17]} 34. Nd3 {[%emt 0:00:18]} Rd2 {[%emt 0:00:
00]} 35. Nc5 {[%emt 0:00:04]} Nc3 {[%emt 0:00:20]} 36. Nb3 {[%emt 0:00:45]} Rd3
{[%emt 0:02:14]} 37. Nc1 {[%emt 0:00:26]} Rd2 {[%emt 0:01:06]} 38. Ra3 {
[%emt 0:00:46]} Rc2 {[%emt 0:00:28]} 39. Nd3 {[%emt 0:00:16]} Ne2+ {[%emt 0:00:
00]} 40. Kg2 {[%emt 0:00:16]} Nxd4 {[%emt 0:00:07]} 41. Rfa1 {[%emt 0:02:37]}
Nf5 {[%emt 0:33:17]} 42. Ra4 {[%emt 0:02:32]} Rd8 {[%emt 0:00:00]} 43. Ne1 {
[%emt 0:00:00]} Rb2 {[%emt 0:00:00]} 44. Nf3 {[%emt 0:00:00]} Ne3+ {[%emt 0:00:
00]} 45. Kg3 {[%emt 0:00:00]} Nf5+ {[%emt 0:00:00]} 46. Kg2 {[%emt 0:00:00]}
Ne3+ {[%emt 0:00:00]} 1/2-1/2

[Event "44th Chess Olympiad Open 2022"]
[Site "Chennai"]
[Date "2022.08.06"]
[Round "8.69"]
[White "Diarra, Sirike"]
[Black "Croes, Octavio"]
[Result "0-1"]
[WhiteElo "1641"]
[BlackElo "1794"]
[Annotator "NA RC"]
[PlyCount "124"]
[EventDate "2022.??.??"]
[TimeControl "60"]

1. e4 {[%emt 0:00:10]} c5 {[%emt 0:00:08]} 2. f4 {[%emt 0:00:25]} Nc6 {[%emt 0:
00:00]} 3. Nf3 {[%emt 0:00:07]} g6 {[%emt 0:00:20]} 4. Bc4 {[%emt 0:00:15]} Bg7
{[%emt 0:01:16]} 5. O-O {[%emt 0:00:19]} d6 {[%emt 0:00:20]} 6. c3 {[%emt 0:00:
00]} Nf6 {[%emt 0:03:12]} 7. d3 {[%emt 0:02:29]} O-O {[%emt 0:00:31]} 8. h3 {
[%emt 0:01:24]} e6 {[%emt 0:01:52]} 9. Bb3 {[%emt 0:00:09]} b5 {[%emt 0:06:39]}
10. Be3 {[%emt 0:01:24]} Qe7 {[%emt 0:10:57]} 11. Nbd2 {[%emt 0:00:48]} Bb7 {
[%emt 0:04:15]} 12. Qe1 {[%emt 0:00:41]} b4 {[%emt 0:04:03]} 13. Qf2 {[%emt 0:
00:00]} a5 {[%emt 0:06:50]} 14. e5 {[%emt 0:03:00]} Nd7 {[%emt 0:01:42]} 15.
exd6 {[%emt 0:00:18]} Qxd6 {[%emt 0:00:08]} 16. Ne4 {[%emt 0:00:48]} Qxd3 {
[%emt 0:01:02]} 17. Nxc5 {[%emt 0:00:31]} Nxc5 {[%emt 0:00:12]} 18. Bxc5 {
[%emt 0:00:40]} Rfc8 {[%emt 0:12:37]} 19. Rad1 {[%emt 0:00:36]} Qb5 {[%emt 0:
00:00]} 20. c4 {[%emt 0:04:58]} Qa6 {[%emt 0:02:29]} 21. Ne5 {[%emt 0:01:44]}
Rd8 {[%emt 0:18:25]} 22. Ba4 {[%emt 0:01:13]} Bf8 {[%emt 0:04:42]} 23. Bb5 {
[%emt 0:02:09]} Bxc5 {[%emt 0:00:39]} 24. Qxc5 {[%emt 0:01:14]} Qa7 {[%emt 0:
00:00]} 25. Qxa7 {[%emt 0:02:39]} Nxa7 26. Rd7 {[%emt 0:02:20]} Rxd7 {[%emt 0:
00:00]} 27. Nxd7 {[%emt 0:00:21]} Nxb5 {[%emt 0:00:19]} 28. cxb5 {[%emt 0:00:
00]} Rc8 {[%emt 0:02:54]} 29. Rf2 {[%emt 0:01:08]} Kg7 {[%emt 0:01:41]} 30. Kh2
{[%emt 0:00:57]} Rc7 {[%emt 0:00:41]} 31. Rd2 {[%emt 0:01:03]} Bd5 {[%emt 0:00:
00]} 32. Nb6 {[%emt 0:01:05]} Bxa2 {[%emt 0:00:07]} 33. Rd6 {[%emt 0:00:30]}
Rc5 {[%emt 0:01:35]} 34. Nd7 {[%emt 0:00:47]} Rxb5 {[%emt 0:00:18]} 35. Ne5 {
[%emt 0:00:52]} Rb7 {[%emt 0:00:41]} 36. Ra6 {[%emt 0:00:21]} Bd5 {[%emt 0:00:
00]} 37. Rxa5 {[%emt 0:04:18]} Rc7 {[%emt 0:00:39]} 38. g4 {[%emt 0:02:42]}
Rc2+ {[%emt 0:03:07]} 39. Kg3 {[%emt 0:00:40]} Rxb2 {[%emt 0:01:28]} 40. Ra7 {
[%emt 0:00:06]} Ra2 {[%emt 0:01:17]} 41. Rxf7+ {[%emt 0:30:08]} Kg8 {[%emt 0:
00:00]} 42. Rc7 {[%emt 0:00:20]} b3 {[%emt 0:09:48]} 43. Rc8+ {[%emt 0:00:00]}
Kg7 {[%emt 0:00:00]} 44. Rc7+ {[%emt 0:00:00]} Kg8 {[%emt 0:00:00]} 45. Rc8+ {
[%emt 0:00:00]} Kg7 {[%emt 0:00:00]} 46. Rc7+ {[%emt 0:00:00]} Kf8 {[%emt 0:00:
00]} 47. Nd7+ {[%emt 0:00:00]} Ke7 {[%emt 0:00:00]} 48. Ne5+ {[%emt 0:00:00]}
Kd6 {[%emt 0:00:00]} 49. Rc1 {[%emt 0:00:00]} b2 {[%emt 0:00:00]} 50. Rb1 {
[%emt 0:00:00]} Be4 {[%emt 0:00:00]} 51. Rxb2 {[%emt 0:00:00]} Rxb2 {[%emt 0:
00:00]} 52. Nc4+ {[%emt 0:00:00]} Kc5 {[%emt 0:00:00]} 53. Nxb2 {[%emt 0:00:00]
} Bc2 {[%emt 0:00:00]} 54. Kf2 {[%emt 0:00:00]} Kd4 {[%emt 0:00:00]} 55. Ke2 {
[%emt 0:00:00]} Kc3 {[%emt 0:00:00]} 56. Nd1+ {[%emt 0:00:00]} Bxd1+ {[%emt 0:
00:00]} 57. Kxd1 {[%emt 0:00:00]} Kd3 {[%emt 0:00:00]} 58. Ke1 {[%emt 0:00:00]}
Ke3 {[%emt 0:00:00]} 59. f5 {[%emt 0:00:00]} exf5 {[%emt 0:00:00]} 60. gxf5 {
[%emt 0:00:00]} gxf5 {[%emt 0:00:00]} 61. Kf1 {[%emt 0:00:00]} Kf3 {[%emt 0:00:
00]} 62. h4 {[%emt 0:00:00]} Kg4 {[%emt 0:00:00]} 0-1